Cogmind - Beta 14 @@@ ROGUE MODE // 2024.11.15 @ 05:03:02 Player: Fangrelle Result: Destroyed by Y-45 Defender with Beam Rifle Performance ------------- Evolutions (1) 500 Regions Visited (3) 600 Robots Destroyed (30) 150 Value Destroyed (735) 735 Prototype IDs (0) 0 Alien Tech Used (0) 0 Bonus (11) 11 TOTAL SCORE: 1996 Bonus ------- High Alert Combat Kills 11 Cogmind --------- Core Integrity 0/400 Matter 161/300 Energy 100/100 System Corruption 0% Temperature Cool (27) Movement Core (1450) Ox28 Location -9/Materials Parts ------- > --- POWER (1) -------- (None) > --- PROPULSION (2) --- (None) > --- UTILITY (2) ------ Huge Storage Unit > --- WEAPON (4) ------- Light Assault Rifle Heavy Hammer Heavy Hammer > --- INVENTORY (25) --- Light Treads Light Treads Compact Wheel Cargo Storage Unit High-capacity Matter Pod (0) High-capacity Matter Pod (0) ECM Suite ECM Suite Mini Grenade Launcher Datajack Heavy Explosive Trap Heavy Explosive Trap Heavy Explosive Trap Heavy Explosive Trap Peak State ------------ > --- POWER ------------ Ion Engine > --- PROPULSION ------- Light Treads Light Treads > --- UTILITY ---------- Huge Storage Unit Light Armor Plating > --- WEAPON ----------- Assault Rifle Assault Rifle Mini Grenade Launcher Heavy Hammer > --- INVENTORY -------- Light Treads Light Treads Compact Wheel Cooling System Cargo Storage Unit High-capacity Matter Pod High-capacity Matter Pod ECM Suite ECM Suite Light Armor Plating Datajack Heavy Hammer Heavy Explosive Trap Heavy Explosive Trap Heavy Explosive Trap Heavy Explosive Trap [Rating: 12] Favorites ----------- Power Ion Engine Engine Ion Engine Propulsion Light Treads Treads Light Treads Leg Aluminum Leg Utility Light Armor Plating Device Cooling System Storage Huge Storage Unit Protection Light Armor Plating Weapon Assault Rifle Energy Gun Medium Laser Ballistic Gun Assault Rifle Launcher Mini Grenade Launcher Impact Weapon Heavy Hammer Build | -11 -10 -10 -9 ------- Run | Yrd Mat Min Mat Slots Evolved 2 | . . . 2 Power . | . . . . Propulsion . | . . . . Utility . | . . . . Weapon 2 | . . . 2 Parts Attached 27 | . 14 3 10 Power 2 | . 1 1 . Engine 2 | . 1 1 . Core . | . . . . Reactor . | . . . . Propulsion 8 | . 6 1 1 Treads 7 | . 5 1 1 Leg 1 | . 1 . . Wheel . | . . . . Hover . | . . . . Flight . | . . . . Utility 7 | . 4 1 2 Device 2 | . 1 . 1 Storage 1 | . 1 . . Processor . | . . . . Hackware . | . . . . Protection 4 | . 2 1 1 Artifact . | . . . . Weapon 10 | . 3 . 7 Energy Gun . | . . . . Energy Cannon . | . . . . Ballistic Gun 5 | . 3 . 2 Ballistic Cannon . | . . . . Launcher 1 | . . . 1 Special Weapon . | . . . . Impact Weapon 4 | . . . 4 Slashing Weapon . | . . . . Piercing Weapon . | . . . . Special Melee Weapon . | . . . . Unidentified Prototypes . | . . . . Parts Lost 13 | . 2 2 9 Power 2 | . . 1 1 Propulsion 2 | . . . 2 Utility 5 | . 1 1 3 Weapon 4 | . 1 . 3 Highest Loss Streak 7 | . 1 2 7 To Critical Strikes 1 | . . . 1 Average Slot Usage (%) 93 | . 97 93 80 Engine 11 | . 14 9 9 Treads 26 | . 27 28 19 Storage 13 | . 14 14 11 Protection 12 | . 12 12 9 Ballistic Gun 25 | . 25 28 17 Impact Weapon 1 | . . . 12 Peak Build Rating 12 | . 7 8 12 Average Rating 7 | . 6 7 9 On Entrance 6 | 6 6 7 8 Naked Turns . | . . . . Heaviest Build 98 | 12 92 92 98 Greatest Support 40 | 20 40 40 40 Greatest Overweight (x) 29 | . 4 2 29 Average Overweight (x) 1 | . 1 2 2 Largest Inventory Capacity 25 | . 25 25 25 Average Capacity 22 | . 20 25 25 Most Carried 18 | . 9 15 18 Average Carried 9 | . 7 9 16 Final Capacity 25 | 8 25 25 25 Final Carried 15 | 6 8 15 15 Class Distribution -------------------- 100% | Mutant Dominant Class ---------------- Mutant | -10/Materials Mutant | -10/Mines Mutant | -9/Materials Resources | -11 -10 -10 -9 ----------- Run | Yrd Mat Min Mat Matter Collected 871 | 177 303 281 110 Remotely . | . . . . Salvage Created 993 | . 764 20 209 Parts 58 | . 43 3 12 Haulers Intercepted 1 | . 1 . . Recyclers Shooed 1 | . 1 . . Parts Field Recycled . | . . . . Retrieved Matter . | . . . . Parts Self-Destructed . | . . . . Prevented . | . . . . Kills | -11 -10 -10 -9 ------- Run | Yrd Mat Min Mat Combat Hostiles Destroyed 24 | . 15 2 7 Melee 1 | . . 1 . Guns 22 | . 15 1 6 Classes Destroyed 7 | . 5 . 2 Hauler 1 | . 1 . . Recycler 1 | . 1 . . Watcher 4 | . 3 . 1 Swarmer 8 | . 2 2 4 Grunt 14 | . 13 . 1 Brawler 1 | . . . 1 Sentry 1 | . . . 1 Best Kill Streak 3 | . 3 2 3 Combat Bots Only 3 | . 3 2 3 Max Kills in Single Turn 2 | . 2 1 1 Gunslinging 1 | . 1 . . Exploded . | . . . . Melee 1 | . . 1 . Uniques/NPCs Destroyed . | . . . . Combat | -11 -10 -10 -9 -------- Run | Yrd Mat Min Mat Hostile Shots Fired 279 | . 112 39 128 Missed 77 | . 39 10 28 Damage Taken 2294 | . 838 237 1219 Core 559 | . 105 53 401 Absorbed by Shields . | . . . . Core Remaining (%) 68 | 100 . 36 . Volleys Fired 115 | . 72 6 37 Largest 2 | . 2 2 2 Hottest 70 | . 70 40 40 Shots Fired 187 | . 132 12 43 Gun 187 | . 132 12 43 Cannon . | . . . . Launcher . | . . . . Special . | . . . . Kinetic 186 | . 131 12 43 Thermal 1 | . 1 . . Explosive . | . . . . Electromagnetic . | . . . . Robot Hit Streak 10 | . 10 3 5 Robot Miss Streak 4 | . 4 4 2 Penetration Max . | . . . . Secondary Targets 3 | . 3 . . Max Gunslinging Chain 1 | . 1 . . Shots Hit Robots 119 | . 82 6 31 Core Hits 50 | . 36 2 12 Critical Kills . | . . . . Critical Parts Destroyed . | . . . . Critical Strikes 1 | . 1 . . Burn 1 | . 1 . . Melee Attacks 7 | . . . 7 Impact 7 | . . . 7 Slashing . | . . . . Piercing . | . . . . Sneak Attacks . | . . . . Combat Hostiles . | . . . . Follow-up Attacks . | . . . . Damage Inflicted 1603 | . 1035 122 446 Guns 1446 | . 1035 113 298 Cannons . | . . . . Explosions . | . . . . Melee 148 | . . . 148 Ramming 9 | . . 9 . Kinetic 1434 | . 1023 113 298 Thermal 12 | . 12 . . Explosive . | . . . . Electromagnetic . | . . . . Impact 148 | . . . 148 Slashing . | . . . . Piercing . | . . . . Highest Corruption 2 | . 2 2 . Average Corruption 1 | . 1 2 . Corruption Purged . | . . . . Corruption Blocked . | . . . . Effects 43 | . 25 18 . Message Errors 6 | . 3 3 . Matter Fused 12 | . 7 5 . Heat Flow Errors 6 | . 2 4 . Energy Discharges 6 | . 5 1 . Parts Rejected 1 | . 1 . . Data Loss (minor) 10 | . 6 4 . Data Loss (major) 1 | . 1 . . Alerts 1 | . . 1 . Overload Shots . | . . . . Overflow Damage 6 | . . . 6 Projectiles . | . . . . Explosions . | . . . . Melee 6 | . . . 6 Knockbacks . | . . . . Impact . | . . . . Kinetic . | . . . . Secondary . | . . . . Self-Inflicted Damage . | . . . . Shots . | . . . . Rammed 1 | . . 1 . Targets Rammed 2 | . . 2 . Kicked . | . . . . Crushed 1 | . . 1 . Highest Temperature 273 | . 135 273 9 Average Temperature 46 | . 19 106 9 Received Heat Transfer 753 | . 441 . 312 Siege Activations . | . . . . Robots Corrupted 1 | . . . 1 Combat Hostiles 1 | . . . 1 Parts Fried . | . . . . Impact Corruptions 1 | . . . 1 Robots Melted . | . . . . Combat Hostiles . | . . . . Parts Melted . | . . . . Heat Transferred 111 | . 111 . . Parts Sabotaged . | . . . . Parts Stolen . | . . . . Parts Stripped . | . . . . Power Chain Reactions . | . . . . Alert | -11 -10 -10 -9 ------- Run | Yrd Mat Min Mat Peak Influence 416 | . 416 72 107 Initial 42 | . . 42 . Average 95 | . 195 13 25 Maximum Alert Level 2 | . 2 . . Low Security (%) 80 | . 55 100 100 Level 1 19 | . 43 . . Level 2 . | . . . . Level 3 . | . . . . Level 4 . | . . . . Level 5 . | . . . . High Security . | . . . . Max Security . | . . . . Squads Dispatched 4 | . 4 . . Investigation 4 | . 4 . . Extermination . | . . . . Reinforcement . | . . . . Assault . | . . . . Garrison . | . . . . Intercept . | . . . . Searches Triggered . | . . . . Construction Impeded . | . . . . Haulers Reinforced . | . . . . Active Scanning Responses . | . . . . Cargo Convoy Interrupts . | . . . . Stealth | -11 -10 -10 -9 --------- Run | Yrd Mat Min Mat Distress Signals 3 | . 1 . 2 Communications Jammed . | . . . . Distress Signals . | . . . . Times Spotted 42 | . 27 3 12 Peak Tracking Total 6 | . 4 3 6 Tactical Retreats 2 | . 2 . . Traps | -11 -10 -10 -9 ------- Run | Yrd Mat Min Mat Traps Triggered 4 | . 4 . . Indirectly . | . . . . Trap Hack Attempts . | . . . . Triggered . | . . . . Disarmed . | . . . . Reprogrammed . | . . . . Reused . | . . . . Traps Extracted . | . . . . Installed . | . . . . Triggered . | . . . . Most Traps Carried 4 | . . 4 4 Machines | -11 -10 -10 -9 ---------- Run | Yrd Mat Min Mat Machines Disabled . | . . . . Max in Single Turn . | . . . . Machines Repaired . | . . . . Machines Dismantled . | . . . . Machines Sabotaged . | . . . . Overloaded Fab Kills . | . . . . Hacking | -11 -10 -10 -9 --------- Run | Yrd Mat Min Mat Machines Accessed 10 | . 9 . 1 Terminals 7 | . 7 . . Fabricators . | . . . . Repair Stations . | . . . . Recycling Units 2 | . 2 . . Scanalyzers 1 | . . . 1 Garrison Access . | . . . . Total Hacks 37 | . 34 . 3 Successful 22 | . 20 . 2 Failed 15 | . 14 . 1 Catastrophic . | . . . . Database Lockouts . | . . . . Manual 31 | . 31 . . Terminals 28 | . 28 . . Fabricators . | . . . . Repair Stations . | . . . . Recycling Units 6 | . 6 . . Scanalyzers 3 | . . . 3 Garrison Access . | . . . . Terminal Hacks 1 | . 1 . . Robot Analysis 1 | . 1 . . Fabricator Hacks . | . . . . Repair Station Hacks . | . . . . Recycling Unit Hacks 3 | . 3 . . Report Inventory 1 | . 1 . . Retrieve Components 2 | . 2 . . Scanalyzer 2 | . . . 2 Insert Component 1 | . . . 1 Analyze 1 | . . . 1 Garrison Access Hacks . | . . . . Unauthorized Hacks 16 | . 16 . . Terminals 14 | . 14 . . Assimilate 3 | . 3 . . Botnet 6 | . 6 . . Skim 5 | . 5 . . Fabricators . | . . . . Repair Stations . | . . . . Recycling Units 2 | . 2 . . Tunnel 2 | . 2 . . Scanalyzers . | . . . . Garrison Access . | . . . . Data Cores Recovered . | . . . . Used . | . . . . Hacking Detections 7 | . 7 . . Full Trace Events 1 | . 1 . . Feedback Events . | . . . . Feedback Blocked . | . . . . Robot Schematics Acquired . | . . . . Robots Built . | . . . . Authchips . | . . . . Time . | . . . . Total Robot Build Rating . | . . . . Part Schematics Acquired 1 | . . . 1 Parts Built . | . . . . Authchips . | . . . . Time . | . . . . Total Part Build Rating . | . . . . Parts Repaired . | . . . . Time . | . . . . Parts Recycled . | . . . . Recycled Matter . | . . . . Retrieved Matter . | . . . . Retrieved Components 13 | . 13 . . Parts Scanalyzed 1 | . . . 1 Part Schematics Acquired 1 | . . . 1 Parts Damaged . | . . . . Bothacking | -11 -10 -10 -9 ------------ Run | Yrd Mat Min Mat Used RIF Installer . | . . . . Robots Hacked . | . . . . Non-combat . | . . . . Combat . | . . . . Robot Hacks Applied . | . . . . Relay Couplers Released . | . . . . Fabnet Peak Effective % . | . . . . Robots Rewired . | . . . . Allies Hacked . | . . . . Hacks Repelled . | . . . . Allies | -11 -10 -10 -9 -------- Run | Yrd Mat Min Mat Total Allies . | . . . . Largest Group . | . . . . Highest-Rated Group . | . . . . Highest-Rated Ally . | . . . . Total Orders . | . . . . Ally Attacks . | . . . . Total Damage . | . . . . Kills . | . . . . Allies Corrupted . | . . . . Allies Melted . | . . . . Intel | -11 -10 -10 -9 ------- Run | Yrd Mat Min Mat Robot Analysis Total 1 | . 1 . . Derelict Logs Recovered 1 | . . 1 . Drone Launches . | . . . . Drone Recoveries . | . . . . Exploration | -11 -10 -10 -9 ------------- Run | Yrd Mat Min Mat Turns Passed 3706 | . 1638 1507 561 Spaces Moved 1134 | 1 542 459 132 Core 2 | . . . 2 Treads 1099 | . 510 459 130 Legs 33 | 1 32 . . Wheels . | . . . . Hover . | . . . . Flight . | . . . . Fastest Speed 120 | 120 120 320 320 Average Speed 291 | 120 256 320 339 Slowest Speed 1500 | 120 480 320 1500 Overloaded Moves . | . . . . Propulsion Burnouts . | . . . . Robots Hopped . | . . . . Cave-ins Triggered . | . . . . Exploration Rate (%) 48 | 2 83 91 19 Regions Visited 3 Branch Regions 1 Pre-discovered Areas 6 | . 4 2 . Known Exits Taken 2 | . 1 1 . Unknown Exits Taken 1 | 1 . . . Scrap Searched 2 | . . 2 . Spaces Dug . | . . . . Terrain Destroyed . | . . . . Melee . | . . . . Projectile . | . . . . AOE . | . . . . Terrain Rammed . | . . . . Walls Destroyed . | . . . . Machines Disabled . | . . . . Actions | -11 -10 -10 -9 --------- Run | Yrd Mat Min Mat Total 1337 | . 661 481 195 Wait 24 | . 17 6 1 Move 1131 | . 541 458 132 Hop . | . . . . Pick Up 18 | . 8 6 4 Fast Attach 9 | . 4 2 3 Attach 10 | . 4 . 6 Detach 4 | . 1 . 3 Swap 8 | . 6 1 1 Drop 9 | . 8 . 1 Fire 115 | . 72 6 37 Melee 7 | . . . 7 Ram . | . . . . Kick . | . . . . Crush 2 | . . 2 . Escape Stasis . | . . . . Rewire . | . . . . Trap . | . . . . Miscellaneous . | . . . . Route ------- -11/Scrapyard -10/Materials (discovered 6 exits: *Mat x3 / *Min x2 / Sub) -10/Mines (discovered 2 exits: *Mat / *Sub) -9/Materials (discovered 3 exits: Mat / *Min x2) History --------- Turn | Location | Event 1 | -11/Scrapyard | Discovered new exit (range 0) 1 | -11/Scrapyard | Entered Materials 235 | -10/Materials | Discovered new exit (range 8) 310 | -10/Materials | Build established: Mutant 524 | -10/Materials | Discovered new exit (range 5) 1069 | -10/Materials | Discovered new exit (range 8) 1201 | -10/Materials | Discovered new exit (range 16) 1384 | -10/Materials | Identified exit to Materials 1384 | -10/Materials | Identified exit to Subcaves 1465 | -10/Materials | Learned 2 Storage zone layouts 1472 | -10/Materials | Learned 4 Subcaves zone layouts 1477 | -10/Materials | Identified exit to Mines 1493 | -10/Materials | Learned 8 Materials zone layouts 1639 | -10/Materials | Entered Mines 1885 | -10/Mines | Core integrity fell below 50% 2111 | -10/Mines | Learned location of Storage (-8) 2373 | -10/Mines | Found DCF Scrap (14 items) 2618 | -10/Mines | Discovered exit to Subcaves (range 10) 3046 | -10/Mines | Found a hidden stash of uninstalled traps 3108 | -10/Mines | Discovered exit to Materials (range 6) 3146 | -10/Mines | Entered Materials 3146 | -9/Materials | Evolved 2 slots: Weapon x2 3147 | -9/Materials | Identified exit to Mines 3147 | -9/Materials | Identified exit to Materials 3660 | -9/Materials | Core integrity fell below 50% 3696 | -9/Materials | Core integrity fell below 20% 3707 | -9/Materials | Destroyed by Y-45 Defender with Beam Rifle Last Messages --------------- 03650_ Acquired 11 matter. 03653_ Atomic Centrifuge disabled. 03655_ K-01 Serf collects debris. 03656_ K-01 Serf destroyed. 03659_ M-13 Machinist repairs Lgt. Ion Engine. 03659_ Lgt. Treads destroyed. 03660_ Acquired Lgt. Assault Rifle. 03668_ K-01 Serf collects debris. 03671_ K-01 Serf destroyed. 03672_ S-10 Pest destroyed. 03674_ Lgt. Assault Rifle destroyed. 03677_ Critical hit (Burn: +37). 03678_ R-06 Scavenger collects Wheel. 03680_ Cooling System destroyed. 03682_ R-06 Scavenger collects Wheel. 03683_ M-13 Machinist repairs Y-45 Defender. 03685_ R-06 Scavenger collects Sml. Matter Pod. 03690_ R-06 Scavenger collects Flight Unit. 03702_ K-01 Serf collects debris. 03707_ Critical hit (Burn: +37). Map ----- +----------------------------------------------------+ | ## #?##+######## ######??????????? | | ## #??# #??????# ??????????? | | #### ###??# #??????# ######??????????? | | #??# #????# #??????# #???????????????? | | #?## ##???# #??############ #???????????????? | | ### ##### #??# ## ##??????????????? | | #??# # #???#??????????? | | +### ##### #??# """ # ##### #????? | | ##+###### #??#""""" # #????? | | " # ## #??#""""" + #?#### | | " "# ## #??#""""" # #?# | | " T# ## #??# """ # ##### #?# "" | | "# ## #??# # #???### ###?# "" | | # ## #??############## ########## #???# "" | | #### ## #???????????????# #???## ## #???# "" | | ############ ###?????????????# #???# ## #???# "" | | ## # #?????????????# #???# ## #???# | | # # #????###??????# #???# ## ##??# | | + # T #?#### ########+##??# ####### | | # # #?# T # #??## # | | ########## #?# # """ """ #??##### # | | ??######### ####?# # """ "" #??????# # | | ??# ## ###### # " "m"" #??????# # | | ??# """ ## + ** # %! #??????# # | | ??# """ ######### *!!# #??????# # | | ??# """ #???????# *!!+ Y@k % #??????# ####### | | ??# #???????# # =%% #??????# ####### | | #?# ######### ####w######?????## ## | | #######+## ##+#### k ########## # """ | | # """ | | > # """ | | "" # | | ##### ##" "## """"" ########## # ? | | #???# ##" !"| "##^ """"" ############# ####+### | | #???# ##"""""""## ^""""" # # | | #???# ########### ^ """ + # | | #???# ########### # # | | #???# # """ # # # #####+##### | | #???# # "T" # # # ??? ??? | | #???# + + # # ?# """ ? | | #???# # # % ######## ?# """ # | | #??## ####+##### ######## ?# """ # | | #### ### ############ % # # ?# # | | ## # # """ # ?# # | | + # # """ # ?########## | | ## # # """ # ??????????? | | #### ####### # # # ??????????? | | #?## #?###########+## # """ # ??????????? | | #?# #?# #??# + """ # ??????????? | | #?# #?# "" #### # """ # ??????????? | +----------------------------------------------------+ Best States ------------- Heat Dissipation 50 Energy Generation 10 Energy Capacity 250 Matter Stores 280 Matter Capacity 300 Sight Range 16 Terrain Scan Density 10 ECM Strength 1 Armor Coverage 150 Evasion (%) 50 Recoil Reduction 2 Item Schematics ----------------- Cargo Storage Unit | -9/Materials | Scanalyzed Robot Schematics ------------------ None Fabricated ------------ Nothing Alien Tech Used ----------------- None Achievements -------------- None Challenges ------------ None Game ------ Seed WeldingNeutrinoCapacitor Manual? 0 Play Time 00:18:17 Cumulative 77.9 hours Start 2024.11.15 @ 04:45:23 End 2024.11.15 @ 05:03:02 Sessions 1 Manual Loads 0 Difficulty Rogue Special Mode None Game No. 134 Rogue 134 Adventurer 0 Explorer 0 Win Type - Total 0 Types 0/0/0/0/0/0/0/0/0 Lore% 41 Gallery% 35 Achievement% 34 Wizard Run 0 Options --------- Layout 0 ASCII 0 Keyboard 0 Movement Mouse Keybinds 0 Fullscreen 1 Font 24/Smallcaps Map View 91x25 Zoom Use 80% Tactical HUD 1 Map Filters NONE Filters NONE Steam 1 RUN: abd9290f-2290-4c05-a714-b1f395c7f66c